[Event "Lliga Catalana DH 2023"]
[Site "Catalonia"]
[Date "2023.03.25"]
[Round "10.1"]
[White "Gozzoli, Yannick"]
[Black "Gines Esteo, Pedro Antonio"]
[Result "0-1"]
[ECO "E10"]
[WhiteElo "2584"]
[BlackElo "2505"]
[Annotator "TA"]
[PlyCount "98"]
[EventDate "2023.01.24"]
[EventType "team-tourn"]
[EventCountry "ESP"]
[SourceTitle "playchess.com"]
[Source "ChessBase"]
[SourceQuality "1"]
[TimeControl "40/5400+30:1800+30"]

{[%evp 9,98,16,22,15,17,0,0,12,8,4,8,-6,0,0,0,0,4,0,41,0,0,-12,0,-16,8,0,0,0,0,0,9,0,12,0,19,0,0,-23,21,0,14,0,0,0,12,0,0,0,0,0,35,-22,-12,-25,-21,-467,-476,-476,-468,-462,-452,-799,-791,-1293,-1304,-1210,-1188,-991,-706,-708,-705,-662,-437,-437,-422,-716,-685,-699,-716,-716,-711,-681,-689,-675,-666,-639,-572,-761,-549,-558,-516]} 1. d4 Nf6 2. c4 e6 3. Nf3 a6 4. Bg5 h6 5. Bxf6 Qxf6 6. Nc3 {E10: Blumenfeld Gambit.} g6 7. g3 Bg7 8. Bg2 {The position is equal.} O-O 9. O-O d6 10. Qb3 {[#]} Qe7 $146 ({Predecessor:} 10... Nd7 11. Rad1 Rb8 12. Qa3 e5 13. Nd5 Qd8 14. dxe5 Nxe5 15. Nxe5 Bxe5 16. c5 dxc5 17. Qxc5 {1-0 Gurevich,M (2510)-Ricardi,P (2520) Havana-B 1986}) 11. Rfd1 Nd7 12. Rac1 Rb8 13. e3 c5 14. a4 b6 15. Qa3 Bb7 16. Ne1 Rfc8 17. b3 Nf6 18. Bxb7 Qxb7 19. d5 e5 20. e4 h5 {[%cal Bh6h5,Bh5h4,Bh4h3][%mdl 32]} 21. Rb1 Qd7 22. Kg2 h4 23. Qc1 h3+ 24. Kg1 Ng4 25. Qc2 f5 26. Qe2 Bh6 27. Nc2 Rf8 28. f3 Nf6 {[%cal Bg4f6,Bf6h5,Bh5g3][%mdl 32]} 29. Rf1 Rf7 30. Rf2 (30. b4 $14) 30... Rbf8 $11 31. Rbf1 f4 32. Kh1 $2 {[%mdl 8192] This move loses the game for White.} (32. gxf4 $1 $11 Bxf4 33. Kh1) 32... fxg3 $1 $19 {Black is clearly winning.} 33. hxg3 {[#]} Nh5 $1 34. Rg1 {[#]} h2 $1 {[%mdl 64] Deflection} 35. Rxh2 (35. Rgg2 $142 Qh3 36. Ne1) 35... Rxf3 36. g4 {White is weak on the dark squares} Ng3+ (36... Rxc3 $2 37. gxh5 Bf4 38. Rxg6+ Kh8 39. Qg2 Rxb3 40. Ne1 $19) 37. Rxg3 Rxg3 38. Rxh6 Qg7 39. g5 Rxc3 40. Ne3 Qf7 41. Ng4 Rf3 ({Don't do} 41... Rxb3 42. Nf6+ $18) ({Weaker is} 41... Rc1+ 42. Kg2 Rf1 43. Rh3 $17) 42. Rh4 (42. Nf6+ $142 Rxf6 43. gxf6 Qxf6 44. Qh2 (44. Qg4 $2 Kg7 $19)) 42... Rf1+ ({Not} 42... Rxb3 43. Nh6+ Kg7 44. Nxf7 $18) 43. Kg2 {Nh6+ would be deadly.} Kg7 {...Qf4 is the strong threat.} 44. Nf6 Rxf6 $1 45. gxf6+ Qxf6 46. Rg4 a5 47. Rg3 Qh4 {Threatens to win with ...Rh8.} 48. Rh3 Qf4 49. Rg3 Rh8 {Weighted Error Value: White=0.47/Black=0.36} 0-1

[Event "Lliga Catalana DH 2023"]
[Site "Catalonia"]
[Date "2023.03.25"]
[Round "10.1"]
[White "Dvirnyy, Danyyil"]
[Black "Dardha, Daniel"]
[Result "0-1"]
[ECO "D35"]
[WhiteElo "2531"]
[BlackElo "2610"]
[Annotator "TA"]
[PlyCount "62"]
[EventDate "2023.01.24"]
[EventType "team-tourn"]
[EventCountry "ESP"]
[SourceTitle "playchess.com"]
[Source "ChessBase"]
[SourceQuality "1"]
[TimeControl "40/5400+30:1800+30"]

{[%evp 11,62,22,22,14,40,10,18,18,20,8,25,16,29,23,62,39,75,50,79,60,54,71,66,31,25,33,28,-41,-13,-12,-6,-12,-3,-9,4,-14,15,0,12,0,0,-108,-108,-388,-388,-388,-388,-388,-388,-388,-377,-509,-502]} 1. d4 {[%emt 0:00:05]} Nf6 {[%emt 0:00:28]} 2. c4 {[%emt 0:00:12]} e6 {[%emt 0:00:10]} 3. Nf3 {[%emt 0:00:06]} d5 {[%emt 0:00:33]} 4. Nc3 {[%emt 0:00:10]} Nbd7 {[%emt 0:03:45][%cal Bb8d7,Bd7c5,Bc5e4][%mdl 32]} 5. Bf4 {[%emt 0:02:24]} Bb4 {[%emt 0:03:57]} 6. cxd5 {[%emt 0:03:18]} exd5 {[%emt 0:00:58]} 7. Rc1 {[%emt 0:01:03] D35: Queen's Gambit Declined: Exchange Variation.} c5 {[%emt 0:04:25]} 8. dxc5 {[%emt 0:04:55] [#]} O-O $146 {[%emt 0:04:18]} ({Predecessor:} 8... Nxc5 9. Qd4 Qe7 10. Bg5 Ne6 11. Bxf6 Nxd4 12. Bxe7 Nxf3+ 13. gxf3 Kxe7 14. a3 Bxc3+ 15. Rxc3 {½-½ Lputian,S (2565)-Plachetka,J (2425) Cappelle op 07th 1991 (6)}) 9. g3 {[%emt 0:10:16] The position is equal.} Nxc5 {[%emt 0:08:27]} 10. Bg2 {[%emt 0:00:26]} Bxc3+ {[%emt 0:01:46]} 11. Rxc3 {[%emt 0:04:59]} Nce4 {[%emt 0:01:48]} 12. Ra3 {[%emt 0:02:16]} Bf5 {[%emt 0:06:05]} 13. O-O {[%emt 0:01:28]} Qd7 {[%emt 0:00:29]} 14. Qa4 {[%emt 0:11:49]} b5 {[%emt 0:02:27]} 15. Qd4 {[%emt 0:00:22]} Rfc8 {[%emt 0:07:00]} 16. Ne5 {[%emt 0:01:09]} Qe7 {[%emt 0:04:37]} 17. Rc1 {[%emt 0:03:22]} (17. f3 $5 {[%cal Rf3e4]} Nd6 18. g4 $16) 17... Rxc1+ {[%emt 0:05:48]} 18. Bxc1 {[%emt 0:00:05]} b4 {[%emt 0:02:40]} 19. Rf3 {[%emt 0:22:03]} (19. Bxe4 $11 Bxe4 20. Ra6) 19... Rc8 $15 {[%emt 0:02:13]} 20. Bf4 {[%emt 0:02:03]} Rc2 {[%emt 0:05:29]} 21. h3 {[%emt 0:07:37]} h5 {[%emt 0:04:14]} 22. Nd3 {[%emt 0:10:44]} Qe6 {[%emt 0:05:52]} (22... Be6 {simplifies} 23. Be5 Rxe2 24. Qxb4 Qxb4 25. Nxb4 a5) 23. Be3 {[%emt 0:01:24]} (23. Nxb4 $2 Rc4 24. Qe5 Rxb4 $19) (23. Re3 {simplifies} Qb6 24. Be5 Qxd4 25. Bxd4 a5 26. Nf4) 23... Rxe2 {[%emt 0:02:59]} (23... Bxh3 $2 24. Nf4 (24. Nxb4 $2 Rc4 $19) 24... Qb6 25. Bxh3 $18 (25. Nxh3 Rc1+ 26. Bf1 Qxd4 $16)) 24. Qxb4 {[%emt 0:01:44] Nf4 would be deadly.} (24. Nf4 {with more complications.} Re1+ 25. Kh2 Qd7 26. Qxb4 Rb1 27. Bd4) 24... Rc2 {[%emt 0:07:07][%cal Oe4g3]} (24... Bxh3 $2 25. Nf4 (25. Bxa7 $2 Bxg2 26. Kxg2 h4 $19) 25... Qd6 26. Qxd6 Re1+ 27. Kh2 Nxd6 28. Bxh3 $18 (28. Kxh3 g5 $18)) 25. Nf4 {[%emt 0:01:10]} (25. Bxa7 $2 Bxh3 26. Be3 Bxg2 27. Kxg2 h4 $19) (25. Qb8+ {simplifies} Qc8 26. Bxa7 Qxb8 27. Bxb8 Bh7 28. Re3) 25... Qc8 {[%emt 0:02:41] [#] Strongly threatening ...Ng5.} 26. Qd4 {[%emt 0:00:12]} (26. Bxa7 $11 {was the only way to keep the balance.} g5 27. Nd3) 26... Ng5 $17 {[%emt 0:02:03][%csl LRf3,LRh3] Black is more active.} 27. Nxh5 $2 {[%emt 0:02:14][%mdl 8192] White is weak on the light squares. Now White is beyond hope.} Nxf3+ $19 {[%emt 0:01:26]} 28. Bxf3 {[%emt 0:00:05]} Nxh5 {[%emt 0:01:01]} ({Weaker is} 28... Bxh3 29. Nxf6+ (29. Qxa7 $2 Nxh5 30. Bxh5 Qf5 $19) 29... gxf6 30. Qxf6 $16) 29. Bxh5 {[%emt 0:00:04] [#]} Be4 $1 {[%emt 0:01:22]} ({And not} 29... Bxh3 30. Bd1 $17) 30. Kh2 {[%emt 0:02:35]} Qc4 {[%emt 0:03:12] ( -> ...Qf1)} 31. Qxc4 {[%emt 0:00:05]} dxc4 {[%emt 0:00:35] Weighted Error Value: White=0.40/Black=0.08 (flawless)} ({Stronger than} 31... Rxc4 32. Bd1 $17) 0-1

[Event "Lliga Catalana DH 2023"]
[Site "Catalonia"]
[Date "2023.03.25"]
[Round "10.2"]
[White "Van Foreest, Lucas"]
[Black "Alsina Leal, Daniel"]
[Result "1/2-1/2"]
[ECO "A14"]
[WhiteElo "2570"]
[BlackElo "2520"]
[Annotator "TA"]
[PlyCount "119"]
[EventDate "2023.01.24"]
[EventType "team-tourn"]
[EventCountry "ESP"]
[SourceTitle "playchess.com"]
[Source "ChessBase"]
[SourceQuality "1"]
[TimeControl "40/5400+30:1800+30"]

{[%evp 12,119,12,13,12,6,24,4,19,30,58,35,61,-50,0,-29,-8,-32,29,-31,14,31,27,17,18,-24,-22,-22,-28,-24,-25,-36,-13,-21,-7,-26,-15,-26,-26,-37,-8,-8,-10,-13,0,0,0,0,0,0,0,0,0,0,0,0,7,0,0,0,0,0,0,0,0,0,0,0,0,0,0,0,0,0,0,0,0,0,0,0,0,0,0,0,0,0,0,0,0,0,32,0,0,0,0,0,0,0,0,0,0,0,0,0,0,0,0,0,0,0]} 1. c4 {[%emt 0:00:12]} e6 {[%emt 0:02:27]} 2. g3 {[%emt 0:00:36]} d5 {[%emt 0:00:31]} 3. Bg2 {[%emt 0:00:13]} Nf6 {[%emt 0:00:42]} 4. Nf3 {[%emt 0:00:36][%cal Bg1f3,Bf3e5,Be5d3][%mdl 32]} Be7 {[%emt 0:05:16]} 5. O-O {[%emt 0:00:19]} O-O {[%emt 0:00:04]} 6. b3 {[%emt 0:00:12]} d4 {[%emt 0:01:34]} 7. e3 {[%emt 0:01:01]} c5 {[%emt 0:00:29] A14: English Opening: 1...e6 with b3 by White.} 8. Ne5 {[%emt 0:00:12] Inhibits Nc6.} Qc7 {[%emt 0:04:52]} 9. f4 {[%emt 0:00:16]} Nbd7 {[%emt 0:12:18]} 10. Nd3 {[%emt 0:02:41] [#]} Rb8 $146 {[%emt 0:12:04]} ({Predecessor:} 10... e5 11. Na3 a6 12. Bb2 Bd6 13. g4 exf4 14. g5 Ne8 15. Nxf4 dxe3 16. dxe3 Be5 {0-1 Ding,L (2811)-Giri,A (2764) Tata Steel-A 85th 2023 (9)}) 11. Na3 {[%emt 0:19:15]} a6 {[%emt 0:01:22]} 12. e4 {[%emt 0:07:30]} (12. Bb2 $14) 12... b6 {[%emt 0:12:09]} (12... e5 $15) 13. Nf2 {[%emt 0:02:09]} (13. e5 $5 Ne8 $8 14. Nc2 $11) 13... Bb7 {[%emt 0:08:15]} 14. d3 {[%emt 0:00:40]} Bc6 {[%emt 0:02:06]} ({Better is} 14... e5 $15) 15. Bd2 {[%emt 0:01:24]} ({White should try} 15. e5 $1 $11) 15... b5 {[%emt 0:07:35]} 16. e5 {[%emt 0:00:53]} Ne8 {[%emt 0:00:43]} 17. Bxc6 {[%emt 0:03:18]} Qxc6 {[%emt 0:00:06]} 18. Ne4 {[%emt 0:00:10]} f5 $36 {[%emt 0:04:52][%mdl 2048] White is under pressure.} 19. exf6 {[%emt 0:01:26]} Nexf6 {[%emt 0:00:06]} 20. Nxf6+ {[%emt 0:12:29]} ({But not} 20. cxb5 axb5 21. Nxf6+ Bxf6 $17) 20... Bxf6 {[%emt 0:05:06]} 21. Qe2 {[%emt 0:00:52]} e5 {[%emt 0:01:45]} (21... b4 $5 {[%cal Rb4a3]} 22. Nc2 e5 $15) 22. Rae1 {[%emt 0:00:08]} Rbe8 {[%emt 0:03:19] [#] Hoping for ...exf4.} (22... Rfe8 {feels hotter.} 23. Qh5 g6 24. Qh3 exf4 25. Bxf4 Be5) 23. Qg2 {[%emt 0:05:32]} Qxg2+ {[%emt 0:02:25]} 24. Kxg2 {[%emt 0:00:03]} b4 {[%emt 0:01:53]} 25. Nc2 {[%emt 0:02:40]} exf4 {[%emt 0:01:24]} 26. Bxf4 {[%emt 0:01:07]} Be5 {[%emt 0:00:43]} 27. Bd2 {[%emt 0:00:50]} h5 {[%emt 0:01:37]} 28. Rxf8+ {[%emt 0:01:20]} Rxf8 {[%emt 0:00:31]} 29. Re2 {[%emt 0:01:32]} Rf5 {[%emt 0:02:11]} 30. Ne1 {[%emt 0:01:30]} Kf7 {[%emt 0:01:52]} 31. Nf3 {[%emt 0:00:35]} Bf6 {[%emt 0:00:06]} 32. Rf2 {[%emt 0:08:12]} Ke6 {[%emt 0:01:09]} 33. Re2+ {[%emt 0:02:02]} Kf7 {[%emt 0:00:05]} 34. h3 {[%emt 0:00:24] [#] Black must now prevent g4.} Ne5 {[%emt 0:00:26]} 35. Nxe5+ {[%emt 0:00:21]} Rxe5 {[%emt 0:00:08]} 36. Rxe5 {[%emt 0:00:34]} Bxe5 $11 {[%emt 0:00:01][%mdl 4096] Endgame KB-KB} 37. Kf3 {[%emt 0:00:10]} Ke6 {[%emt 0:00:26]} 38. g4 {[%emt 0:00:10]} hxg4+ {[%emt 0:01:50]} 39. Kxg4 {[%emt 0:00:09]} g6 {[%emt 0:00:57]} 40. Bh6 {[%emt 0:03:17]} (40. Kg5 $5 Kf7 $8 41. Kg4 $11) 40... Bd6 {[%emt 0:00:25] Repels Bf8} 41. Bc1 {[%emt 0:30:11]} Bc7 {[%emt 0:31:07]} 42. a3 {[%emt 0:01:11]} (42. Kg5 $5 Kf7 $8 43. a3 $11) 42... bxa3 {[%emt 0:01:18]} 43. Bxa3 {[%emt 0:00:05]} Bd6 {[%emt 0:00:05]} 44. Bc1 {[%emt 0:00:03]} (44. Kg5 $5 Kf7 $8 45. Bc1 $11) 44... Kf6 {[%emt 0:00:34]} 45. Bd2 {[%emt 0:00:31]} Ke6 {[%emt 0:01:45]} 46. Kg5 {[%emt 0:00:28]} Kf7 {[%emt 0:00:03]} 47. Be1 {[%emt 0:00:33]} Kg7 {[%emt 0:01:07]} 48. Ba5 {[%emt 0:00:08]} Kf7 {[%emt 0:00:08]} 49. Bb6 {[%emt 0:00:06]} Be7+ {[%emt 0:01:29]} 50. Kf4 {[%emt 0:00:06] Strongly threatening Ke5.} Bd6+ {[%emt 0:00:08]} 51. Ke4 {[%emt 0:00:06] Kd5 would be deadly.} Ke6 {[%emt 0:00:07] The position is equal.} 52. Bd8 {[%emt 0:03:34]} Bf8 {[%emt 0:00:10]} 53. Bg5 {[%emt 0:00:24]} Bd6 {[%emt 0:00:14]} 54. Bh6 {[%emt 0:00:14]} Be7 {[%emt 0:00:23]} 55. Bg7 {[%emt 0:00:51]} Bd6 {[%emt 0:00:10]} 56. Bh6 {[%emt 0:07:33]} Be7 {[%emt 0:00:25]} 57. Bd2 {[%emt 0:01:10]} Bf8 {[%emt 0:00:25]} 58. Bc1 {[%emt 0:00:28]} Be7 {[%emt 0:00:29]} 59. Bf4 {[%emt 0:01:34]} Bf8 {[%emt 0:00:29]} 60. Bd2 {[%emt 0:00:15] Weighted Error Value: White=0.11 (very precise) /Black=0.10 (very precise)} 1/2-1/2

[Event "Lliga Catalana DH 2023"]
[Site "Catalonia"]
[Date "2023.03.25"]
[Round "10.2"]
[White "Aloma Vidal, Robert"]
[Black "Edouard, Romain"]
[Result "1/2-1/2"]
[ECO "D77"]
[WhiteElo "2446"]
[BlackElo "2532"]
[Annotator "TA"]
[PlyCount "22"]
[EventDate "2023.01.24"]
[EventType "team-tourn"]
[EventCountry "ESP"]
[SourceTitle "playchess.com"]
[Source "ChessBase"]
[SourceQuality "1"]
[TimeControl "40/5400+30:1800+30"]

{[%evp 19,22,0,0,0,6]} 1. Nf3 d5 2. g3 g6 3. Bg2 Bg7 4. d4 Nf6 5. O-O O-O 6. c4 dxc4 7. Na3 {[%cal Bb1a3,Ba3c4,Bc4e5][%mdl 32]} Na6 {[%cal Bb8a6,Ba6c5,Bc5e4][%mdl 32]} 8. Nxc4 c5 9. dxc5 Be6 10. Nce5 Nxc5 11. Be3 {[#] D77: Fianchetto Grünfeld: 6 0-0: Replies other than 6...c6.} Nce4 $146 {A rather calm draw.} ({Predecessor:} 11... Rc8 12. Rc1 Qxd1 13. Rfxd1 Na4 14. Bd4 Ne4 15. Ne1 f5 16. Bxe4 fxe4 17. b3 Rfd8 18. Rxc8 Bxc8 {0-1 Ibarra Jerez,J (2564)-Michalik,P (2556) Olympiad-43 Batumi 2018 (10.4)}) 1/2-1/2

[Event "Lliga Catalana DH 2023"]
[Site "Catalonia"]
[Date "2023.03.25"]
[Round "10.3"]
[White "Peralta, Fernando"]
[Black "Ayats Llobera, Gerard"]
[Result "1/2-1/2"]
[ECO "D88"]
[WhiteElo "2596"]
[BlackElo "2449"]
[Annotator "TA"]
[PlyCount "46"]
[EventDate "2023.01.24"]
[EventType "team-tourn"]
[EventCountry "ESP"]
[SourceTitle "playchess.com"]
[Source "ChessBase"]
[SourceQuality "1"]
[TimeControl "40/5400+30:1800+30"]

{[%evp 24,46,0,0,0,0,0,0,0,0,0,0,0,16,18,18,27,-45,-25,-86,-79,-67,0,0,0]} 1. d4 Nf6 2. c4 g6 3. Nc3 d5 4. cxd5 Nxd5 5. e4 Nxc3 6. bxc3 Bg7 7. Bc4 O-O 8. Ne2 c5 9. O-O Nc6 10. Be3 b6 11. Qd2 Bb7 12. Rad1 cxd4 13. cxd4 Rc8 {[%cal Oc6d4] D88: Exchange Grünfeld: Classical Line: 10 Be3 cxd4 11 cxd4.} 14. Bb5 {[#]} e6 $146 ({Predecessor:} 14... Na5 15. f3 Nc4 16. Bxc4 Rxc4 17. Rc1 Ba6 18. Rxc4 Bxc4 19. Rd1 Qd6 20. Nc1 Qa3 {½-½ Rut,V (2134)-Postupa,P (2226) CZE-chT1W 1819 2018 (10.7)}) 15. d5 exd5 16. exd5 {[%cal Be4d5,Bd5d6,Bd6d7][%mdl 32]} Ne5 17. d6 {White wants to play d7.} a6 18. d7 Ra8 19. f4 Ng4 (19... axb5 20. fxe5 Bxe5 21. Bg5 $16) 20. Bc4 (20. Ba4 $1 $11) 20... Qf6 $15 {White should prevent ...Rad8.} (20... Qh4 21. h3 (21. Bxb6 $2 Qxh2#) 21... Nxe3 22. Qxe3 $16) 21. Rc1 (21. Nd4 $1 $11) 21... Rad8 {[#] Strongly threatening ...Qe7.} (21... Qh4 22. h3 (22. Bxb6 $2 Qxh2#) 22... Nxe3 23. Qxe3 $16) 22. Rfd1 (22. Bf2 Nxf2 23. Rxf2 Qe7 $17) 22... Nxe3 ({Don't take} 22... Qh4 23. h3 (23. Bxb6 Qxh2+ 24. Kf1 Bxg2+ 25. Ke1 Qh4+) 23... Nf6 24. Bxb6 (24. Bf2 Qh5 $14) 24... Rxd7 25. Qa5 $11) (22... Be4 $15) 23. Qxe3 $11 Kh8 {Weighted Error Value: White=0.21 (precise) /Black=0.10 (very precise)} 1/2-1/2

[Event "Lliga Catalana DH 2023"]
[Site "Catalonia"]
[Date "2023.03.25"]
[Round "10.3"]
[White "Cuartas, Jaime Alexander"]
[Black "Magem Badals, Jordi"]
[Result "1/2-1/2"]
[ECO "D06"]
[WhiteElo "2526"]
[BlackElo "2510"]
[Annotator "TA"]
[PlyCount "73"]
[EventDate "2023.01.24"]
[EventType "team-tourn"]
[EventCountry "ESP"]
[SourceTitle "playchess.com"]
[Source "ChessBase"]
[SourceQuality "1"]
[TimeControl "40/5400+30:1800+30"]

{[%evp 15,73,46,37,14,34,23,41,43,40,34,45,43,37,46,41,27,29,29,36,19,11,16,23,7,0,0,0,0,0,2,0,4,2,0,6,8,8,0,0,0,0,0,0,0,0,0,0,0,0,-10,0,0,0,0,0,-8,0,0,0,-9]} 1. d4 {[%emt 0:00:03]} d5 {[%emt 0:04:59]} 2. Nf3 {[%emt 0:00:09]} c5 {[%emt 0:00:58]} 3. c4 {[%emt 0:00:33]} cxd4 {[%emt 0:00:22]} 4. cxd5 {[%emt 0:00:15]} Nf6 {[%emt 0:00:31]} 5. Qxd4 {[%emt 0:00:15]} Qxd5 {[%emt 0:00:21]} 6. Nc3 {[%emt 0:00:18]} Qxd4 {[%emt 0:00:20]} 7. Nxd4 {[%emt 0:00:05]} a6 {[%emt 0:00:23]} 8. g3 {[%emt 0:02:51]} e5 {[%emt 0:00:42]} 9. Nc2 {[%emt 0:00:04] D06: Queen's Gambit: Symmetrical and Baltic Defences.} Bd7 {[%emt 0:06:07]} 10. Bg2 {[%emt 0:00:32]} Bc6 {[%emt 0:00:16]} 11. O-O {[%emt 0:01:39] White is slightly better.} Bxg2 {[%emt 0:18:20]} 12. Kxg2 {[%emt 0:00:07]} h6 {[%emt 0:03:15]} 13. Rd1 {[%emt 0:01:54]} Nc6 {[%emt 0:15:38]} 14. Be3 {[%emt 0:00:13]} Be7 {[%emt 0:11:40]} 15. Bb6 {[%emt 0:02:26] [#]} Bd8 $146 {[%emt 0:05:17]} ({Predecessor:} 15... O-O 16. Ne3 Bd8 17. Nc4 Bxb6 18. Nxb6 Rad8 19. Ncd5 Nxd5 20. Nxd5 f5 21. e3 Kf7 {0-1 Daamen,F (2061)-Farkas,R (1918) Budapest FS08 FM-B 2010 (7)}) 16. Bc5 {[%emt 0:04:51]} Be7 {[%emt 0:01:51]} 17. Bxe7 {[%emt 0:00:21]} Kxe7 {[%emt 0:01:03]} 18. Ne3 {[%emt 0:00:08] Threatening Nf5+.} Rhd8 {[%emt 0:04:14]} 19. Nf5+ {[%emt 0:04:00]} Kf8 {[%emt 0:00:11] The position is equal.} 20. Nd6 {[%emt 0:00:10]} Rd7 {[%emt 0:03:55]} 21. Nde4 {[%emt 0:04:29] aiming for Nxf6.} Rxd1 {[%emt 0:02:01]} 22. Rxd1 {[%emt 0:00:08] Nxf6 is the strong threat.} Nxe4 {[%emt 0:00:12]} 23. Nxe4 $11 {[%emt 0:00:06][%mdl 4096] Endgame KRN-KRN} Rd8 {[%emt 0:00:10]} 24. Rc1 {[%emt 0:03:07]} Rd5 {[%emt 0:14:43]} 25. Nc5 {[%emt 0:08:34]} Nd8 {[%emt 0:00:14]} 26. Rc2 {[%emt 0:00:45]} a5 {[%emt 0:02:22]} 27. a3 {[%emt 0:10:41]} Ke7 {[%emt 0:00:33]} 28. h4 {[%emt 0:03:04]} Ne6 {[%emt 0:00:34]} 29. Ne4 {[%emt 0:19:18]} ({Don't play} 29. Nxb7 Rb5 30. Nxa5 Rxa5 $17) 29... f5 {[%emt 0:01:42]} 30. Nc3 {[%emt 0:00:07]} Rd7 {[%emt 0:00:16]} 31. e4 {[%emt 0:02:01]} Nd4 {[%emt 0:00:16]} 32. Rd2 {[%emt 0:00:13]} g6 {[%emt 0:00:45]} 33. f3 {[%emt 0:10:16]} Ke6 {[%emt 0:00:05]} 34. Kf2 {[%emt 0:02:41]} Rf7 {[%emt 0:01:16]} 35. Kg2 {[%emt 0:00:45]} Rd7 {[%emt 0:00:19]} 36. Kf2 {[%emt 0:00:49]} Rf7 {[%emt 0:00:04]} 37. Kg2 {[%emt 0:00:12] Weighted Error Value: White=0.03 (flawless) /Black=0.03 (flawless)} 1/2-1/2

[Event "Lliga Catalana DH 2023"]
[Site "Catalonia"]
[Date "2023.03.25"]
[Round "10.4"]
[White "Diaz Camallonga, Carles"]
[Black "Asis Gargatagli, Hipolito"]
[Result "0-1"]
[ECO "C77"]
[WhiteElo "2472"]
[BlackElo "2501"]
[Annotator "TA"]
[PlyCount "88"]
[EventDate "2023.01.24"]
[EventType "team-tourn"]
[EventCountry "ESP"]
[SourceTitle "playchess.com"]
[Source "ChessBase"]
[SourceQuality "1"]
[TimeControl "40/5400+30:1800+30"]

{[%evp 11,88,15,16,9,30,23,46,13,24,0,0,0,0,-7,1,0,0,-4,-2,-45,0,10,30,21,52,3,5,-13,-16,-16,-16,-29,-31,-62,-56,-56,-56,-58,-25,-25,-25,-24,-25,-25,-19,-65,-25,-25,-25,-25,-25,-79,-75,-93,-66,-108,-43,-47,-45,-87,-83,-85,-86,-87,-23,-25,-12,-49,-49,-49,-49,-89,-41,-161,-154,-732,-706,-628,-624]} 1. e4 {[%emt 0:12:39]} e5 {[%emt 0:00:25]} 2. Nf3 {[%emt 0:00:05]} Nc6 {[%emt 0:00:07]} 3. Bb5 {[%emt 0:00:05]} a6 {[%emt 0:00:30]} 4. Ba4 {[%emt 0:00:05]} Nf6 {[%emt 0:00:17]} 5. d3 {[%emt 0:00:25]} Bc5 {[%emt 0:00:52]} 6. Bxc6 {[%emt 0:01:54]} dxc6 {[%emt 0:00:16]} 7. Nbd2 {[%emt 0:01:38] C77: Ruy Lopez: 3...a6 4 Ba4 Nf6, unusual lines.} Ng4 {[%emt 0:04:18]} 8. O-O {[%emt 0:00:36]} Qe7 {[%emt 0:00:14]} 9. Nc4 {[%emt 0:03:49] White is slightly better.} f6 {[%emt 0:03:04]} 10. a3 {[%emt 0:14:33]} Be6 {[%emt 0:21:48]} 11. b4 {[%emt 0:02:43]} Ba7 {[%emt 0:01:15] [#]} 12. Qe1 $146 {[%emt 0:02:23]} ({Predecessor:} 12. Qe2 g5 13. Rb1 h5 14. a4 Qd7 15. Nfd2 h4 16. Nb3 h3 17. g3 Nh6 18. Be3 Bxe3 19. Nxe3 {0-1 Bologan,V (2672)-Grischuk,A (2779) Wch Rapid Khanty-Mansiysk 2013 (6)}) 12... g5 {[%emt 0:16:59]} 13. Na5 {[%emt 0:10:12]} O-O-O {[%emt 0:03:29]} 14. a4 {[%emt 0:01:32][%cal Ob4b5]} Qd7 {[%emt 0:07:59]} 15. Bd2 {[%emt 0:09:09]} (15. Nd2 {looks sharper.} Bd4 16. Ra3 h5 17. Ndb3) 15... b6 {[%emt 0:08:04]} (15... Kb8 $15) 16. Nc4 $11 {[%emt 0:01:46]} Kb7 {[%emt 0:00:10]} 17. Bc3 {[%emt 0:12:25]} Qf7 {[%emt 0:02:18]} 18. Ne3 {[%emt 0:13:19]} (18. Qe2 $14 {was preferrable.}) 18... b5 {[%emt 0:02:31]} 19. axb5 {[%emt 0:01:38]} axb5 {[%emt 0:04:58]} 20. Nxg4 {[%emt 0:08:51]} Bxg4 {[%emt 0:00:12]} 21. Nd2 {[%emt 0:00:04]} Be6 {[%emt 0:03:24] Against Nb3} 22. Qc1 {[%emt 0:04:51]} Bb6 {[%emt 0:04:22]} 23. Qa3 {[%emt 0:00:45] [#] White threatens Qa6+ and mate.} Ra8 {[%emt 0:00:15] Against Qa6+. Active counter play!} 24. Qb2 {[%emt 0:00:03]} Qd7 {[%emt 0:01:03]} 25. Rxa8 {[%emt 0:02:22]} Rxa8 {[%emt 0:00:06]} 26. Ra1 {[%emt 0:00:19] Prevents Ra2} Rxa1+ {[%emt 0:01:17]} 27. Qxa1 {[%emt 0:00:05]} h5 {[%emt 0:01:24]} 28. Qd1 {[%emt 0:03:14]} (28. h3 $11 {might be stronger.}) 28... g4 {[%emt 0:02:16]} 29. Nf1 {[%emt 0:01:35]} h4 {[%emt 0:00:15]} 30. Bd2 {[%emt 0:01:25]} Qd4 {[%emt 0:03:40]} 31. Be1 {[%emt 0:00:58]} (31. Ne3 $11 {remains equal.}) 31... f5 $17 {[%emt 0:01:32]} 32. exf5 {[%emt 0:00:30]} Bxf5 {[%emt 0:00:04]} 33. Qe2 {[%emt 0:00:04] White is weak on the light squares} Qa1 {[%emt 0:04:15]} (33... e4 $17 {[%cal Re4d3]} 34. dxe4 Qxe4 35. Qxe4 Bxe4) 34. Ne3 $15 {[%emt 0:00:34]} Be6 {[%emt 0:00:46]} 35. Qd1 {[%emt 0:01:49]} Qd4 {[%emt 0:00:05]} 36. c3 {[%emt 0:00:54]} Qd7 {[%emt 0:00:08]} 37. Qe2 {[%emt 0:00:30]} Qg7 {[%emt 0:01:57]} ({Black should try} 37... h3 $17) 38. c4 $11 {[%emt 0:00:28]} Bxe3 {[%emt 0:00:22]} 39. fxe3 {[%emt 0:00:26]} bxc4 {[%emt 0:00:35]} 40. dxc4 {[%emt 0:00:04] KQB-KQB} h3 {[%emt 0:00:09]} 41. Bc3 {[%emt 0:01:19]} Qg6 {[%emt 0:00:26]} (41... Qg8 $17 42. Bxe5 Bxc4) 42. Bxe5 {[%emt 0:00:32]} (42. e4 $15) 42... Qb1+ $19 {[%emt 0:00:22]} 43. Kf2 $2 {[%emt 0:00:28] [#]} (43. Qf1 $17 Qe4 44. Bg3) 43... hxg2 {[%emt 0:00:07]} (43... Qxb4 44. Qb2 c5 45. Kg3 $15) 44. Kxg2 {[%emt 0:01:26]} Qe4+ {[%emt 0:00:03] Weighted Error Value: White=0.30/Black=0.13 (very precise)} ({Weaker is} 44... Qxb4 45. Kg3 $11) 0-1